bitfinex-derivatives/quotes_BNBF0:USTF0_20250211
["timestamp","ask_amount","ask_price","bid_price","bid_amount"]
[1739314334737,1.33690887,641.56,640.99,0.31201734]
[1739314335031,0.645,641.61,640.99,0.31201734]
[1739314335235,1.33711407,641.6,640.99,0.31201734]
[1739314335431,1.33711407,641.59,640.99,0.31201734]
[1739314335635,1.33711407,641.58,640.99,0.31201734]
[1739314335836,1.33711407,641.57,640.99,0.31201734]
[1739314336038,1.33711407,641.56,640.99,0.31201734]
[1739314336231,0.645,641.61,640.99,0.31201734]
[1739314336435,1.33734241,641.6,640.99,0.31201734]
[1739314336630,1.33734241,641.59,640.99,0.31201734]
[1739314336831,1.33734241,641.58,640.99,0.31201734]
[1739314337037,1.33734241,641.57,640.99,0.31201734]
[1739314337239,1.33734241,641.56,640.99,0.31201734]
[1739314337438,0.645,641.61,640.99,0.31201734]
[1739314337639,1.33779538,641.6,640.99,0.31201734]
[1739314337834,1.33779538,641.59,640.99,0.31201734]
[1739314338035,1.33779538,641.58,640.99,0.31201734]
[1739314338237,1.33779538,641.57,640.99,0.31201734]
[1739314338540,1.33779538,641.56,640.99,0.31201734]
[1739314338838,1.33779538,641.55,640.99,0.31201734]
[1739314339038,0.645,641.61,640.99,0.31201734]
[1739314339231,1.33808239,641.6,640.99,0.31201734]
[1739314339438,1.33808239,641.59,640.99,0.31201734]
[1739314339633,1.33808239,641.58,640.99,0.31201734]
[1739314339835,1.33808239,641.57,640.99,0.31201734]
[1739314340037,1.33808239,641.56,640.99,0.31201734]
[1739314340238,0.645,641.61,640.99,0.31201734]
[1739314340239,1.33808239,641.55,640.99,0.31201734]
[1739314340438,1.33808239,641.54,640.99,0.31201734]
[1739314340638,1.33808239,641.53,640.99,0.31201734]
[1739314340839,1.33808239,641.52,640.99,0.31201734]
[1739314341035,1.33808239,641.51,640.99,0.31201734]
[1739314341235,1.33808239,641.5,640.99,0.31201734]
[1739314341440,1.33808239,641.49,640.99,0.31201734]
[1739314341640,1.33808239,641.48,640.99,0.31201734]
[1739314341842,1.33910675,641.47,640.99,0.31201734]
[1739314342043,1.33910675,641.46,640.99,0.31201734]
[1739314342237,1.33910675,641.45,640.99,0.31201734]
[1739314342437,1.33910675,641.44,640.99,0.31201734]
[1739314342640,0.645,641.61,640.99,0.31201734]
[1739314342838,1.33946424,641.6,640.99,0.31201734]
[1739314343142,1.33946424,641.59,640.99,0.31201734]
[1739314343343,1.33946424,641.58,640.99,0.31201734]
[1739314343537,1.33971781,641.57,640.99,0.31201734]
[1739314343741,1.33971781,641.56,640.99,0.31201734]
[1739314343943,1.33971781,641.55,640.99,0.31201734]
[1739314344246,1.33971781,641.54,640.99,0.31201734]
[1739314344440,1.33971781,641.53,640.99,0.31201734]
[1739314344646,1.33971781,641.52,640.99,0.31201734]
[1739314344839,1.33971781,641.51,640.99,0.31201734]
[1739314345039,1.33971781,641.5,640.99,0.31201734]
[1739314345346,1.33971781,641.49,640.99,0.31201734]
[1739314345646,1.33971781,641.48,640.99,0.31201734]
[1739314345944,1.33971781,641.47,640.99,0.31201734]
[1739314346146,1.33971781,641.46,640.99,0.31201734]
[1739314346340,1.33971781,641.45,640.99,0.31201734]
[1739314346641,1.33971781,641.44,640.99,0.31201734]
[1739314346843,1.33971781,641.43,640.99,0.31201734]
[1739314347039,1.33971781,641.42,640.99,0.31201734]
[1739314347242,1.33971781,641.41,640.99,0.31201734]
[1739314347445,1.33971781,641.4,640.99,0.31201734]
[1739314347747,0.645,641.61,640.61,1.13057641]
[1739314347748,1.33993321,641.39,640.61,1.13057641]
[1739314347943,1.33993321,641.38,640.62,0.31219755]
[1739314348141,1.33993321,641.37,640.62,0.31219755]
[1739314348447,1.33993321,641.36,640.62,0.31219755]
[1739314348638,0.645,641.61,640.62,0.31219755]
[1739314348839,1.3399642,641.6,640.62,0.31219755]
[1739314349043,1.3399642,641.59,640.62,0.31219755]
[1739314349244,1.3399642,641.58,640.72,1.13057641]
[1739314349444,1.3399642,641.57,640.72,1.13057641]
[1739314349644,1.3399642,641.56,640.72,1.13057641]
[1739314349845,1.3399642,641.55,640.72,1.13057641]
[1739314350042,0.645,641.61,640.72,1.13057641]
[1739314350043,1.3399642,641.54,640.72,1.13057641]
[1739314350346,1.34002153,641.53,640.72,1.13057641]
[1739314350549,1.34002153,641.52,640.72,1.13057641]
[1739314350744,1.34002153,641.51,640.72,1.13057641]
[1739314350946,1.34002153,641.5,640.72,1.13057641]
[1739314351150,1.34002153,641.49,640.72,1.13057641]
[1739314351444,1.34002153,641.48,640.72,1.13057641]
[1739314351650,1.34002153,641.47,640.72,1.13057641]
[1739314351850,1.34027501,641.46,640.72,1.13057641]
[1739314352051,1.34027501,641.45,640.68,1.62782267]
[1739314352247,1.34027501,641.44,640.68,1.62782267]
[1739314352546,1.34027501,641.43,640.68,1.62782267]
[1739314352751,1.34027501,641.42,640.68,1.62782267]
[1739314352951,1.34027501,641.41,640.68,1.62782267]
[1739314353151,1.15,641.46,640.68,1.62782267]
[1739314353152,1.34027501,641.4,640.68,1.62782267]
[1739314353451,1.34027501,641.39,640.68,1.62782267]
[1739314353644,1.34027501,641.38,640.68,1.62782267]
[1739314353843,1.34027501,641.37,640.68,1.62782267]
[1739314354048,1.34071011,641.36,640.68,1.62782267]
[1739314354249,1.34071011,641.35,640.68,1.62782267]
[1739314354450,1.34071011,641.34,640.68,1.62782267]
[1739314354650,1.15,641.46,640.68,1.62782267]
[1739314354848,1.34095909,641.45,640.68,1.62782267]
[1739314355047,1.34095909,641.44,640.68,1.62782267]
[1739314355351,1.34095909,641.43,640.68,1.62782267]
[1739314355553,1.34095909,641.42,640.68,1.62782267]
[1739314355754,1.34095909,641.41,640.68,1.62782267]
[1739314355956,1.15,641.46,640.68,1.62782267]
[1739314356155,1.34126344,641.45,640.68,1.62782267]
[1739314356355,1.34126344,641.44,640.68,1.62782267]
[1739314356555,1.34126344,641.43,640.68,1.62782267]
[1739314356753,1.34126344,641.42,640.68,1.62782267]
[1739314356949,1.34126344,641.41,640.62,0.31219755]
[1739314357252,1.34126344,641.4,640.62,0.31219755]
[1739314357452,1.15,641.46,640.62,0.31219755]
[1739314357453,1.34126344,641.39,640.62,0.31219755]
[1739314357654,1.34126344,641.38,640.62,0.31219755]
[1739314357955,1.34126344,641.37,640.62,0.31219755]
[1739314358153,1.3418727,641.36,640.62,0.31219755]
[1739314358355,1.3418727,641.35,640.62,0.31219755]
[1739314358554,1.3418727,641.34,640.62,0.31219755]
[1739314358754,1.34191743,641.33,640.62,0.31219755]
[1739314358951,1.34191743,641.32,640.62,0.31219755]
[1739314359151,1.34191743,641.31,640.62,0.31219755]
[1739314359459,1.34191743,641.3,640.62,0.31219755]
[1739314359655,1.34191743,641.29,640.62,0.31219755]
[1739314359955,1.34191743,641.28,640.62,0.31219755]
[1739314360151,1.34191743,641.27,640.62,0.31219755]
[1739314360357,1.34191743,641.26,640.62,0.31219755]
[1739314360653,1.34191743,641.25,640.62,0.31219755]
[1739314360851,1.34191743,641.24,640.62,0.31219755]
[1739314361058,1.34191743,641.23,640.62,0.31219755]
[1739314361257,1.34191743,641.22,640.62,0.31219755]
[1739314361457,1.34191743,641.21,640.62,0.31219755]
[1739314361752,1.34191743,641.2,640.62,0.31219755]
[1739314361958,1.34191743,641.19,640.62,0.31219755]
[1739314362158,1.34191743,641.18,640.62,0.31219755]
[1739314362359,1.34191743,641.17,640.62,0.31219755]
[1739314362552,1.34191743,641.16,640.62,0.31219755]
[1739314362757,1.34191743,641.15,640.62,0.31219755]
[1739314362958,1.34191743,641.14,640.62,0.31219755]
[1739314363155,0.646,641.28,640.62,0.31219755]
[1739314363352,1.34195992,641.27,640.62,0.31219755]
[1739314363554,1.34195992,641.26,640.62,0.31219755]
[1739314363762,1.34195992,641.25,640.62,0.31219755]
[1739314363954,1.34195992,641.24,640.62,0.31219755]
[1739314364155,1.34195992,641.23,640.62,0.31219755]
[1739314364359,1.677,641.28,640.62,0.31219755]
[1739314364554,1.34181135,641.27,640.62,0.31219755]
[1739314364757,1.34181135,641.26,640.62,0.31219755]
[1739314364953,1.34181135,641.25,640.62,0.31219755]
[1739314365157,1.34181135,641.24,640.62,0.31219755]
[1739314365358,1.34181135,641.23,640.62,0.31219755]
[1739314365655,1.34181135,641.22,640.62,0.31219755]
[1739314365958,1.34181135,641.21,640.62,0.31219755]
[1739314366160,1.34181135,641.2,640.62,0.31219755]
[1739314366360,1.677,641.28,640.62,0.31219755]
[1739314366361,1.34181135,641.19,640.62,0.31219755]
[1739314366552,1.34154244,641.18,640.62,0.31219755]
[1739314366754,1.34154244,641.17,640.62,0.31219755]
[1739314366959,1.34154244,641.16,640.62,0.31219755]
[1739314367160,1.34154244,641.15,640.62,0.31219755]
[1739314367357,1.677,641.28,640.62,0.31219755]
[1739314367555,1.34142096,641.27,640.62,0.31219755]
[1739314367754,1.34142096,641.26,640.62,0.31219755]
[1739314368057,1.34142096,641.25,640.62,0.31219755]
[1739314368254,1.34142096,641.24,640.62,0.31219755]
[1739314368456,1.34142096,641.23,640.62,0.31219755]
[1739314368660,1.34128213,641.22,640.62,0.31219755]
[1739314368855,1.34128213,641.21,640.62,0.31219755]
[1739314369163,1.34128213,641.2,640.62,0.31219755]
[1739314369362,1.34128213,641.19,640.62,0.31219755]
[1739314369662,1.34128213,641.18,640.62,0.31219755]
[1739314369861,1.34128213,641.17,640.62,0.31219755]
[1739314370059,1.198,641.25,640.62,0.31219755]
[1739314370259,1.34114332,641.24,640.62,0.31219755]
[1739314370462,1.34114332,641.23,640.62,0.31219755]
[1739314370661,1.34105959,641.22,640.62,0.31219755]
[1739314370963,1.34105959,641.21,640.62,0.31219755]
[1739314371155,1.34105959,641.2,640.62,0.31219755]
[1739314371359,1.34105959,641.19,640.62,0.31219755]
[1739314371660,1.34105959,641.18,640.62,0.31219755]
[1739314371863,1.198,641.25,640.62,0.31219755]
[1739314372057,1.34098591,641.24,640.62,0.31219755]
[1739314372262,1.34098591,641.23,640.62,0.31219755]
[1739314372562,1.34098591,641.22,640.62,0.31219755]
[1739314372763,1.34091935,641.21,640.62,0.31219755]
[1739314372962,1.198,641.25,640.62,0.31219755]
[1739314373164,1.34090882,641.24,640.62,0.31219755]
[1739314373363,1.34090882,641.23,640.62,0.31219755]
[1739314373564,1.34090882,641.22,640.62,0.31219755]
[1739314373765,1.198,641.25,640.62,0.31219755]
[1739314373965,1.34089383,641.24,640.62,0.31219755]
[1739314374267,1.34089383,641.23,640.62,0.31219755]
[1739314374466,1.198,641.25,640.62,0.31219755]
[1739314374467,1.34089383,641.22,640.62,0.31219755]
[1739314374666,1.34089383,641.21,640.62,0.31219755]
[1739314374961,1.198,641.25,640.62,0.31219755]
[1739314375166,1.34089355,641.24,640.62,0.31219755]
[1739314375366,1.198,641.25,640.62,0.31219755]
[1739314375567,1.34088999,641.24,640.62,0.31219755]
[1739314375768,1.34088999,641.23,640.62,0.31219755]
[1739314375963,1.34088999,641.22,640.62,0.31219755]
[1739314376162,1.198,641.25,640.62,0.31219755]
[1739314376365,1.34088945,641.24,640.62,0.31219755]
[1739314376559,1.34088945,641.23,640.62,0.31219755]
[1739314376765,1.34088945,641.22,640.62,0.31219755]
[1739314376964,1.34088761,641.21,640.62,0.31219755]
[1739314377162,1.198,641.25,640.62,0.31219755]
[1739314377366,1.34088761,641.24,640.62,0.31219755]
[1739314377567,1.34088761,641.23,640.62,0.31219755]
[1739314377768,1.34088761,641.22,640.62,0.31219755]
[1739314377969,1.34088761,641.21,640.62,0.31219755]
[1739314378171,1.198,641.25,640.62,0.31219755]
[1739314378370,1.34088354,641.24,640.62,0.31219755]
[1739314378666,1.34088354,641.23,640.62,0.31219755]
[1739314378869,1.34088354,641.22,640.62,0.31219755]
[1739314379070,1.34088354,641.21,640.62,0.31219755]
[1739314379268,1.34088354,641.2,640.62,0.31219755]
[1739314379470,1.34088354,641.19,640.62,0.31219755]
[1739314379774,1.34088354,641.18,640.62,0.31219755]
[1739314380069,1.198,641.25,640.62,0.31219755]
[1739314380266,1.34091105,641.24,640.62,0.31219755]
[1739314380472,1.34091105,641.23,640.62,0.31219755]
[1739314380670,1.34091105,641.22,640.62,0.31219755]
[1739314380870,1.34091105,641.21,640.62,0.31219755]
[1739314381070,1.198,641.25,640.62,0.31219755]
[1739314381266,1.34091768,641.24,640.62,0.31219755]
[1739314381467,1.3409232,641.23,640.62,0.31219755]
[1739314381669,1.198,641.25,640.62,0.31219755]
[1739314382066,1.34095397,641.24,640.62,0.31219755]
[1739314382272,1.34095397,641.23,640.62,0.31219755]
[1739314382467,1.34095397,641.22,640.62,0.31219755]
[1739314382666,1.198,641.25,640.62,0.31219755]
[1739314382866,1.34103105,641.24,640.62,0.31219755]
[1739314383071,1.198,641.25,640.62,0.31219755]
[1739314383272,1.34102852,641.24,640.62,0.31219755]
[1739314383466,1.34102852,641.23,640.62,0.31219755]
[1739314383668,1.34102852,641.22,640.62,0.31219755]
[1739314383872,1.198,641.25,640.62,0.31219755]
[1739314384074,1.34111114,641.24,640.62,0.31219755]
[1739314384273,1.34111114,641.23,640.62,0.31219755]
[1739314384473,1.34111114,641.22,640.62,0.31219755]
[1739314384675,1.198,641.25,640.62,0.31219755]
[1739314384975,1.34118526,641.24,640.62,0.31219755]
[1739314385175,1.34118526,641.23,640.62,0.31219755]
[1739314385372,1.34118526,641.22,640.62,0.31219755]
[1739314385572,1.34118526,641.21,640.62,0.31219755]
[1739314385769,1.198,641.25,640.62,0.31219755]
[1739314385975,1.34127133,641.24,640.62,0.31219755]
[1739314386174,1.198,641.25,640.62,0.31219755]
[1739314386375,1.34138357,641.24,640.62,0.31219755]
[1739314386573,1.198,641.25,640.62,0.31219755]
[1739314387070,1.34138998,641.24,640.62,0.31219755]
[1739314387273,1.34140748,641.23,640.62,0.31219755]
[1739314387470,0.646,641.23,640.62,0.31219755]
[1739314390378,1.34206811,641.22,640.62,0.31219755]
[1739314390577,0.646,641.23,640.62,0.31219755]
[1739314390778,2.45307619,641.22,640.62,0.31219755]
[1739314390978,1.111,641.22,640.62,0.31219755]
[1739314391379,1.3421159,641.21,640.62,0.31219755]
[1739314391575,1.111,641.22,640.62,0.31219755]
[1739314391775,1.34227919,641.21,640.62,0.31219755]
[1739314391980,1.111,641.22,640.62,0.31219755]
[1739314392174,1.34227842,641.21,640.62,0.31219755]
[1739314392377,1.111,641.22,640.62,0.31219755]
[1739314392574,1.34250601,641.21,640.62,0.31219755]
[1739314392778,1.111,641.22,640.62,0.31219755]
[1739314392980,1.34250655,641.21,640.62,0.31219755]
[1739314393282,1.34275511,641.2,640.62,0.31219755]
[1739314393583,1.111,641.22,640.62,0.31219755]
[1739314393778,1.34275362,641.21,640.62,0.31219755]
[1739314394075,1.34275362,641.2,640.62,0.31219755]
[1739314394279,1.34279177,641.19,640.62,0.31219755]
[1739314394477,1.34279177,641.18,640.62,0.31219755]
[1739314394678,1.34279177,641.17,640.62,0.31219755]
[1739314394878,1.111,641.22,640.62,0.31219755]
[1739314395083,1.34303342,641.21,640.62,0.31219755]
[1739314395280,1.34303342,641.2,640.62,0.31219755]
[1739314395475,1.34303342,641.19,640.62,0.31219755]
[1739314395675,1.34303342,641.18,640.62,0.31219755]
[1739314395879,1.34303342,641.17,640.62,0.31219755]
[1739314396081,1.34303342,641.16,640.62,0.31219755]
[1739314396278,1.34303342,641.15,640.62,0.31219755]
[1739314396477,1.34303342,641.14,640.62,0.31219755]
[1739314396676,1.34303342,641.13,640.62,0.31219755]
[1739314396882,1.34303342,641.12,640.62,0.31219755]
[1739314397181,1.34303342,641.11,640.62,0.31219755]
[1739314397381,1.34303342,641.1,640.62,0.31219755]
[1739314397582,1.34303342,641.09,640.62,0.31219755]
[1739314397779,1.34303342,641.08,640.62,0.31219755]
[1739314397984,1.34303342,641.07,640.62,0.31219755]
[1739314398186,1.34303342,641.06,640.62,0.31219755]
[1739314398484,1.34303342,641.05,640.62,0.31219755]
[1739314398684,1.34303342,641.04,640.62,0.31219755]
[1739314398885,1.111,641.22,640.62,0.31219755]
[1739314398886,1.34303342,641.03,640.62,0.31219755]
[1739314399080,1.34303342,641.02,640.62,0.31219755]
[1739314399286,1.34303342,641.01,640.62,0.31219755]
[1739314399483,1.34303342,641.0,640.62,0.31219755]
[1739314399688,1.34303342,640.99,640.62,0.31219755]
[1739314399892,1.111,641.22,640.62,0.31219755]
[1739314400190,1.34422739,641.21,640.62,0.31219755]
[1739314400487,1.34422739,641.2,640.62,0.31219755]
[1739314400688,1.34422739,641.19,640.62,0.31219755]
[1739314400983,1.111,641.22,640.62,0.31219755]
[1739314400984,1.34422739,641.18,640.62,0.31219755]
[1739314401188,1.34422739,641.17,640.62,0.31219755]
[1739314401383,1.34429503,641.16,640.62,0.31219755]
[1739314401589,1.34429503,641.15,640.62,0.31219755]
[1739314401790,1.34429503,641.14,640.62,0.31219755]
[1739314401989,1.34429503,641.13,640.62,0.31219755]
[1739314402188,1.34429503,641.12,640.62,0.31219755]
[1739314402386,1.34429503,641.11,640.62,0.31219755]
[1739314402589,1.34429503,641.1,640.62,0.31219755]
[1739314402789,1.111,641.22,640.62,0.31219755]
[1739314402790,1.34429503,641.09,640.62,0.31219755]
[1739314402989,1.34429503,641.08,640.62,0.31219755]
[1739314403186,1.34429503,641.07,640.62,0.31219755]
[1739314403390,1.34429503,641.06,640.62,0.31219755]
[1739314403594,1.34429503,641.05,640.62,0.31219755]
[1739314403792,1.34429503,641.04,640.62,0.31219755]
[1739314403989,1.34429503,641.03,640.62,0.31219755]
[1739314404187,0.819,641.04,640.62,0.31219755]
[1739314404387,1.34448558,641.03,640.62,0.31219755]
[1739314404588,1.34448558,641.02,640.62,0.31219755]
[1739314404790,0.819,641.04,640.62,0.31219755]
[1739314405090,1.34450277,641.03,640.62,0.31219755]
[1739314405292,1.34450277,641.02,640.62,0.31219755]
[1739314405493,0.819,641.04,640.62,0.31219755]
[1739314405686,1.34455673,641.03,640.62,0.31219755]
[1739314405886,1.34455673,641.02,640.62,0.31219755]
[1739314406088,0.819,641.04,640.62,0.31219755]
[1739314406293,1.34450017,641.03,640.62,0.31219755]
[1739314406493,1.34450017,641.02,640.62,0.31219755]
[1739314406694,1.34461921,641.01,640.62,0.31219755]
[1739314406894,0.819,641.04,640.62,0.31219755]
[1739314407094,1.34462347,641.03,640.62,0.31219755]
[1739314407295,1.34462347,641.02,640.62,0.31219755]
[1739314407492,0.819,641.04,640.62,0.31219755]
[1739314407694,1.34469065,641.03,640.62,0.31219755]
[1739314407891,1.34469065,641.02,640.62,0.31219755]
[1739314408093,0.819,641.04,640.62,0.31219755]
[1739314408294,1.34469839,641.03,640.62,0.31219755]
[1739314408592,1.34469839,641.02,640.62,0.31219755]
[1739314408897,0.819,641.04,640.62,0.31219755]
[1739314408898,1.34469839,641.01,640.62,0.31219755]
[1739314409196,0.819,641.04,640.62,0.31219755]
[1739314409396,1.34481937,641.03,640.62,0.31219755]
[1739314409696,1.34481839,641.02,640.62,0.31219755]
[1739314409897,1.34481839,641.01,640.62,0.31219755]
[1739314410098,0.819,641.04,640.62,0.31219755]
[1739314410290,1.34477579,641.03,640.62,0.31219755]
[1739314410495,1.34477579,641.02,640.62,0.31219755]
[1739314410697,1.34477579,641.01,640.62,0.31219755]
[1739314410898,0.819,641.04,640.62,0.31219755]
[1739314411090,1.34492649,641.03,640.62,0.31219755]
[1739314411294,0.819,641.04,640.62,0.31219755]
[1739314411295,1.34492649,641.02,640.62,0.31219755]
[1739314411493,1.34492649,641.01,640.62,0.31219755]
[1739314411696,1.34492649,641.0,640.62,0.31219755]
[1739314411997,1.915,641.04,640.62,0.31219755]
[1739314412198,1.34504602,641.03,640.62,0.31219755]
[1739314412398,1.34504602,641.02,640.62,0.31219755]
[1739314412698,1.915,641.04,640.62,0.31219755]
[1739314412699,1.34504602,641.01,640.62,0.31219755]
[1739314412902,1.34504602,641.0,640.62,0.31219755]
[1739314413198,1.34523347,640.99,640.62,0.31219755]
[1739314413389,1.915,641.04,640.62,0.31219755]
[1739314413597,1.34537746,641.03,640.62,0.31219755]
[1739314413799,1.34537746,641.02,640.62,0.31219755]
[1739314413997,1.34537746,641.01,640.62,0.31219755]
[1739314414197,1.34537746,641.0,640.62,0.31219755]
[1739314414392,1.915,641.04,640.62,0.31219755]
[1739314414595,1.34555886,641.03,640.62,0.31219755]
[1739314414794,1.34555886,641.02,640.62,0.31219755]
[1739314414999,1.34555886,641.01,640.62,0.31219755]
[1739314415197,1.34555886,641.0,640.62,0.31219755]
[1739314415393,1.915,641.04,640.62,0.31219755]
[1739314415595,1.34577237,641.03,640.62,0.31219755]
[1739314415796,1.34577237,641.02,640.62,0.31219755]
[1739314415994,1.34577237,641.01,640.62,0.31219755]
[1739314416196,1.34577237,641.0,640.62,0.31219755]
[1739314416396,1.34577237,640.99,640.62,0.31219755]
[1739314416594,0.646,641.03,640.62,0.31219755]
[1739314416897,1.346011,641.02,640.62,0.31219755]
[1739314417096,1.346011,641.01,640.62,0.31219755]
[1739314417294,1.346011,641.0,640.62,0.31219755]
[1739314417499,1.346011,640.99,640.62,0.31219755]
[1739314417693,0.646,641.03,640.62,0.31219755]
[1739314417893,1.34593739,641.02,640.62,0.31219755]
[1739314418098,1.34593739,641.01,640.62,0.31219755]
[1739314418294,1.34593739,641.0,640.62,0.31219755]
[1739314418599,1.34593739,640.99,640.62,0.31219755]
[1739314418791,0.646,641.03,640.62,0.31219755]
[1739314418997,1.34586096,641.02,640.62,0.31219755]
[1739314419298,1.34586096,641.01,640.62,0.31219755]
[1739314419499,1.34586096,641.0,640.62,0.31219755]
[1739314419698,1.34586096,640.99,640.62,0.31219755]
[1739314419898,0.646,641.03,640.62,0.31219755]
[1739314420399,1.34579802,641.02,640.62,0.31219755]
[1739314420600,1.34579802,641.01,640.62,0.31219755]
[1739314420800,1.34579802,641.0,640.62,0.31219755]
[1739314421101,0.646,641.03,640.62,0.31219755]
[1739314421301,1.34574207,641.02,640.62,0.31219755]
[1739314421495,1.34574207,641.01,640.62,0.31219755]
[1739314421699,1.34574207,641.0,640.62,0.31219755]
[1739314421998,0.646,641.03,640.62,0.31219755]
[1739314422198,1.34570451,641.02,640.62,0.31219755]
[1739314422498,1.34570451,641.01,640.62,0.31219755]
[1739314422695,1.34570451,641.0,640.62,0.31219755]
[1739314423001,0.646,641.03,640.62,0.31219755]
[1739314423194,1.34566515,641.02,640.62,0.31219755]
[1739314423400,1.34566515,641.01,640.62,0.31219755]
[1739314423597,1.34566515,641.0,640.62,0.31219755]
[1739314423801,0.646,641.03,640.62,0.31219755]
[1739314424002,1.34563409,641.02,640.62,0.31219755]
[1739314424202,1.34563409,641.01,640.62,0.31219755]
[1739314424403,1.3456197,641.0,640.62,0.31219755]
[1739314424702,0.646,641.03,640.62,0.31219755]
[1739314424904,1.34562017,641.02,640.62,0.31219755]
[1739314425103,1.34562017,641.01,640.62,0.31219755]
[1739314425304,1.34562017,641.0,640.62,0.31219755]
[1739314425498,0.646,641.03,640.62,0.31219755]
[1739314425802,1.34561357,641.02,640.62,0.31219755]
[1739314425998,1.34561357,641.01,640.62,0.31219755]
[1739314426204,1.34561357,641.0,640.62,0.31219755]
[1739314426397,0.646,641.03,640.62,0.31219755]
[1739314426601,1.34561145,641.02,640.62,0.31219755]
[1739314426802,1.34561145,641.01,640.62,0.31219755]
[1739314426999,1.34561145,641.0,640.62,0.31219755]
[1739314427197,0.646,641.03,640.62,0.31219755]
[1739314427398,1.34562023,641.02,640.62,0.31219755]
[1739314427602,1.34562023,641.01,640.62,0.31219755]
[1739314427804,1.34562023,641.0,640.62,0.31219755]
[1739314428005,0.646,641.03,640.62,0.31219755]
[1739314428304,1.085,641.0,640.62,0.31219755]
[1739314428703,1.34561719,640.99,640.62,0.31219755]
[1739314428901,1.085,641.0,640.62,0.31219755]
[1739314429102,1.34561222,640.99,640.62,0.31219755]
[1739314429305,1.085,641.0,640.62,0.31219755]
[1739314429503,1.34562303,640.99,640.62,0.31219755]
[1739314429705,1.085,641.0,640.62,0.31219755]
[1739314430005,1.34561918,640.99,640.62,0.31219755]
[1739314430207,1.085,641.0,640.62,0.31219755]
[1739314430402,1.34564465,640.99,640.62,0.31219755]
[1739314430606,1.085,641.0,640.62,0.31219755]
[1739314430807,1.34566105,640.99,640.62,0.31219755]
[1739314431008,1.34566105,640.98,640.62,0.31219755]
[1739314431206,1.34566983,640.97,640.62,0.31219755]
[1739314431501,1.085,641.0,640.62,0.31219755]
[1739314431707,1.34567724,640.99,640.62,0.31219755]
[1739314431906,1.085,641.0,640.62,0.31219755]
[1739314432107,1.34566376,640.99,640.62,0.31219755]
[1739314432308,1.34566376,640.98,640.62,0.31219755]
[1739314432504,1.085,641.0,640.62,0.31219755]
[1739314432699,1.34570258,640.99,640.62,0.31219755]
[1739314432903,1.34570258,640.98,640.62,0.31219755]
[1739314433107,1.34570258,640.97,640.62,0.31219755]
[1739314433307,1.085,641.0,640.62,0.31219755]
[1739314433507,1.34571699,640.99,640.62,0.31219755]
[1739314433702,1.34571699,640.98,640.62,0.31219755]
[1739314433906,1.34571699,640.97,640.62,0.31219755]
[1739314434104,1.34577881,640.96,640.62,0.31219755]
[1739314434308,1.34592651,640.95,640.56,1.13057641]
[1739314434504,1.34592651,640.94,640.56,1.13057641]
[1739314434706,1.34592651,640.93,640.56,1.13057641]
[1739314434910,1.34592651,640.92,640.56,1.13057641]
[1739314435104,1.34592651,640.91,640.56,1.13057641]
[1739314435305,1.34592651,640.9,640.56,1.13057641]
[1739314435508,1.34592651,640.89,640.56,1.13057641]
[1739314435714,1.34592651,640.88,640.56,1.13057641]
[1739314435913,1.34592651,640.87,640.56,1.13057641]
[1739314436111,1.34592651,640.86,640.56,1.13057641]
[1739314436313,1.34592651,640.85,640.56,1.13057641]
[1739314436609,1.34592651,640.84,640.04,1.13057641]
[1739314436809,1.156,640.99,640.05,0.31247558]
[1739314437009,1.34569071,640.98,640.05,0.31247558]
[1739314437207,1.34569071,640.97,640.05,0.31247558]
[1739314437411,1.34569071,640.96,640.05,0.31247558]
[1739314437609,1.34569071,640.95,640.05,0.31247558]
[1739314437915,1.34569071,640.94,640.05,0.31247558]
[1739314438115,1.34569071,640.93,640.05,0.31247558]
[1739314438316,1.34569071,640.92,640.05,0.31247558]
[1739314438616,1.34569071,640.91,640.05,0.31247558]
[1739314438821,1.34569071,640.9,640.05,0.31247558]
[1739314439115,1.34546953,640.89,640.05,0.31247558]
[1739314439317,1.34546953,640.88,640.06,1.62939148]
[1739314439516,1.34546953,640.87,640.07,0.31246582]
[1739314439712,1.156,640.99,640.07,0.31246582]
[1739314439713,1.34546953,640.86,640.07,0.31246582]
[1739314439917,1.34546953,640.85,640.07,0.31246582]
[1739314440111,1.34546953,640.84,640.07,0.31246582]
[1739314440316,1.34546953,640.83,640.07,0.31246582]
[1739314440516,1.34546953,640.82,640.07,0.31246582]
[1739314440720,1.156,640.99,640.07,0.31246582]
[1739314440920,1.34541218,640.98,640.07,0.31246582]
[1739314441121,1.34541218,640.97,640.07,0.31246582]
[1739314441322,1.156,640.99,640.21,1.13057641]
[1739314441323,1.34541218,640.96,640.21,1.13057641]
[1739314441518,1.34540515,640.95,640.21,1.13057641]
[1739314441820,1.34540515,640.94,640.21,1.13057641]
[1739314442115,1.34540515,640.93,640.22,0.31239261]
[1739314442313,1.345256,640.92,640.22,0.31239261]
[1739314442514,1.156,640.99,640.22,0.31239261]